[Event "9th Porticcio Open 2024"]
[Site "Porticcio"]
[Date "2024.07.02"]
[Round "6.5"]
[White "Druska, Juraj"]
[Black "Nayak Rajesh"]
[Result "1/2-1/2"]
[ECO "E05"]
[WhiteElo "2466"]
[BlackElo "2185"]
[Annotator "TA"]
[PlyCount "86"]
[EventDate "2024.07.01"]
[EventType "swiss"]
[EventCountry "FRA"]
[SourceTitle "playchess.com"]
[Source "ChessBase"]
[SourceQuality "1"]
[TimeControl "5400+30"]

{[%evp 13,86,1,10,13,14,19,23,6,10,17,21,21,22,21,35,26,53,39,32,0,0,0,-13,0,-8,-10,0,0,0,-36,-50,-41,-45,-44,-31,-31,-28,-27,-33,-36,-30,-24,-29,-31,-18,-18,-19,-14,-13,-41,0,-12,-12,-20,-8,-8,-8,-8,139,-28,-28,-32,-27,-54,-59,-58,-39,-37,-37,-83,0,-10,0,-81,0]} 1. Nf3 {[%emt 0:06:01]} Nf6 {[%emt 0:00:28]} 2. g3 {[%emt 0:00:29]} e6 {[%emt 0:00:41]} 3. Bg2 {[%emt 0:00:22]} d5 {[%emt 0:00:11][%cal Bd7d5,Bd5c4][%mdl 32]} 4. O-O {[%emt 0:00:14]} Be7 {[%emt 0:02:53]} 5. c4 {[%emt 0:00:14]} O-O {[%emt 0:00:13]} 6. d4 {[%emt 0:00:24]} dxc4 {[%emt 0:00:13]} 7. Qc2 {[%emt 0:00:19]} b5 {[%emt 0:00:10]} 8. a4 {[%emt 0:01:08]} Bb7 {[%emt 0:04:30]} 9. axb5 {[%emt 0:00:40]} a6 {[%emt 0:00:14]} 10. bxa6 {[%emt 0:14:58] White has an edge.} (10. Qxc4 $2 {too greedy.} axb5 11. Qxb5 Bc6 (11... Rxa1 $2 12. Qxb7 Rxb1 13. Qa8 $19) 12. Rxa8 Bxb5 $19) 10... Nxa6 {[%emt 0:00:15]} 11. Qxc4 {[%emt 0:09:54]} Bd5 {[%emt 0:00:25]} 12. Qc3 {[%emt 0:00:56]} c5 {[%emt 0:17:15]} 13. Be3 {[%emt 0:17:09]} Ng4 {[%emt 0:02:04]} 14. Bf4 {[%emt 0:00:36]} (14. dxc5 {simplifies} Nxe3 15. Qxe3 Nxc5 16. Nc3) 14... cxd4 {[%emt 0:03:55]} 15. Qxd4 {[%emt 0:01:44]} Bc5 {[%emt 0:00:46]} ({But not} 15... Bxf3 $2 16. Qxd8 Raxd8 17. Bxf3 $18) 16. Qc3 {[%emt 0:03:25]} Qb6 {[%emt 0:09:40][%cal Rg4f2]} 17. e3 {[%emt 0:09:13]} Qb7 $36 {[%emt 0:15:21][%cal Oc5b4][%mdl 2048] Black is pushing.} 18. Ne1 {[%emt 0:12:13][%cal Oa1a6]} Bxg2 {[%emt 0:03:05]} 19. Nxg2 {[%emt 0:00:05]} Rfc8 {[%emt 0:01:06][%cal Oe6e5]} 20. Qd2 {[%emt 0:03:58]} e5 {[%emt 0:00:24]} 21. h3 {[%emt 0:16:58]} exf4 {[%emt 0:37:11]} (21... Rd8 {is interesting.} 22. Qc2 exf4 23. hxg4 fxg3 24. fxg3 Bf8) 22. hxg4 {[%emt 0:00:00]} fxg3 {[%emt 0:00:00]} 23. fxg3 {[%emt 0:00:00]} Rd8 {[%emt 0:00:00]} 24. Qe2 {[%emt 0:00:00]} Nc7 {[%emt 0:00:00]} 25. Rxa8 {[%emt 0:00:00]} Rxa8 {[%emt 0:00:00]} 26. Nc3 {[%emt 0:00:00]} Ne6 {[%emt 0:00:00]} 27. Qf3 {[%emt 0:00:00]} Qxf3 {[%emt 0:00:00]} 28. Rxf3 {[%emt 0:00:00]} Rb8 {[%emt 0:00:00]} 29. Rf2 {[%emt 0:00:00]} Rb4 {[%emt 0:00:00]} 30. Rc2 {[%emt 0:00:00]} Rxg4 {[%emt 0:00:00]} 31. Kf2 {[%emt 0:00:00]} g5 {[%emt 0:00:00]} 32. Nd5 {[%emt 0:00:00]} Kg7 {[%emt 0:00:00] Prevents Nf6.} 33. Nc7 {[%emt 0:00:00]} Be7 {[%emt 0:00:00]} 34. Nxe6+ {[%emt 0:00:00]} fxe6 $11 {[%emt 0:00:00][%mdl 4096] Endgame. KRB-KRN} 35. Kf3 {[%emt 0:01:18]} h5 {[%emt 0:00:00]} (35... Rb4 $11 {keeps the balance.}) 36. Ne1 $2 {[%emt 0:00:10]} ({White must play} 36. Rc7 $16 {[%cal Oe3e4] Hoping for e4!} Kf6 37. Rxe7 Kxe7 38. e4) 36... Bd6 {[%emt 0:00:00]} 37. Rg2 {[%emt 0:00:02] [#] aiming for e4.} Rb4 {[%emt 0:00:00] And now ...g4+ would win.} 38. Rd2 {[%emt 0:00:37]} Bb8 {[%emt 0:00:00]} 39. Nd3 {[%emt 0:00:29] Inhibits e5.} Rg4 {[%emt 0:00:00]} 40. Rg2 {[%emt 0:00:23]} Rc4 {[%emt 0:00:00]} 41. Rd2 {[%emt 0:00:15]} (41. g4 $1 $15) 41... Rg4 {[%emt 0:00:00]} ({Better is} 41... Kg6 $17) 42. Rg2 {[%emt 0:00:03] [#] Black must now prevent e4.} Rc4 {[%emt 0:00:00]} (42... Ra4 $11) 43. Rd2 $17 {[%emt 0:00:50]} Rg4 {[%emt 0:11:00] Weighted Error Value: White=0.16 (very precise) /Black=0.15 (very precise) .  Mistake:       	White=2     	Black=4      Inaccurate:     	White=3     	Black=2      OK:         	White=16    	Black=19     Best:        	White=4     	---} (43... Kg6 $17) 1/2-1/2

[Event "9th Porticcio Open 2024"]
[Site "Porticcio"]
[Date "2024.07.02"]
[Round "6.6"]
[White "Roux, Baptiste"]
[Black "Lagarde, Maxime"]
[Result "0-1"]
[ECO "C08"]
[WhiteElo "2352"]
[BlackElo "2604"]
[Annotator "TA"]
[PlyCount "52"]
[EventDate "2024.07.01"]
[EventType "swiss"]
[EventCountry "FRA"]
[SourceTitle "playchess.com"]
[Source "ChessBase"]
[SourceQuality "1"]
[TimeControl "5400+30"]

{[%evp 24,52,0,0,0,-11,0,-6,-17,-41,-33,-51,-9,-10,-23,-57,-33,-55,-44,-46,-50,-151,-161,-493,-467,-487,-475,-487,-491,-914,-893]} 1. e4 {[%emt 0:00:43]} e6 {[%emt 0:00:04]} 2. d4 {[%emt 0:00:20][%cal Bd2d4,Bd4c5][%mdl 32]} d5 {[%emt 0:00:04]} 3. Nd2 {[%emt 0:01:54]} c5 {[%emt 0:00:09]} 4. exd5 {[%emt 0:00:47]} exd5 {[%emt 0:00:39]} 5. Bb5+ {[%emt 0:02:25]} Bd7 {[%emt 0:00:07]} 6. Qe2+ {[%emt 0:01:46]} Be7 {[%emt 0:00:11]} 7. dxc5 {[%emt 0:01:10]} Nf6 {[%emt 0:00:15]} 8. Ngf3 {[%emt 0:11:18]} O-O {[%emt 0:00:08]} 9. O-O {[%emt 0:01:05]} Re8 {[%emt 0:02:02]} 10. Bxd7 {[%emt 0:00:20]} Nbxd7 {[%emt 0:00:14]} 11. Nb3 {[%emt 0:03:18]} Bxc5 {[%emt 0:01:06]} 12. Qd3 {[%emt 0:05:49]} Bb6 {[%emt 0:00:17]} 13. Bg5 {[%emt 0:03:05][%cal Bc1g5,Bg5h4,Bh4g3][%mdl 32]} h6 {[%emt 0:04:39]} 14. Bh4 {[%emt 0:00:59]} Re4 {[%emt 0:00:11]} (14... g5 $5 15. Bg3 $8 Ne4 $11) 15. Bg3 {[%emt 0:04:07]} Qe7 {[%emt 0:13:01] The position is equal.} 16. Rfe1 {[%emt 0:10:56]} Nc5 {[%emt 0:06:34]} 17. Nxc5 {[%emt 0:03:17]} Bxc5 {[%emt 0:04:40]} 18. Kf1 {[%emt 0:03:18]} Re8 {[%emt 0:01:48]} 19. c3 {[%emt 0:01:35]} Qe6 {[%emt 0:10:16]} 20. h3 {[%emt 0:13:27]} a6 {[%emt 0:04:36]} 21. Rad1 {[%emt 0:06:05]} Qf5 {[%emt 0:03:04]} 22. Qd2 {[%emt 0:05:15] [#]} (22. Rxe4 $15 dxe4 23. Qc2) 22... Rxe1+ $1 $17 {[%emt 0:07:09]} 23. Nxe1 $2 {[%emt 0:03:29]} (23. Rxe1 {nothing else works.} Ne4 24. Qd1) 23... Ne4 $1 $19 {[%emt 0:10:19][%csl LRd2,LRg3] Black is clearly winning.} 24. Qf4 {[%emt 0:00:07] [#]} Qe6 {[%emt 0:00:54] ( -> ...Nxg3+)} (24... Qxf4 25. Bxf4 Bxf2 26. Nd3 $17) 25. Kg1 {[%emt 0:01:59]} g5 {[%emt 0:01:28]} 26. Qf3 {[%emt 0:05:37] [#]} (26. Qg4 $142 Qxg4 27. hxg4 Nxg3 28. Nd3) 26... Nd2 $1 {[%emt 0:00:22][%mdl 512] Weighted Error Value: White=0.72/Black=0.07 (flawless) .  Mistake:       	White=3     	---        Inaccurate:     	White=1     	Black=1      OK:         	White=3     	Black=4      Best:        	White=1     	Black=2      Strong:       	---       	Black=1      Brilliant:      	---       	Black=1} 0-1

[Event "9th Porticcio Open 2024"]
[Site "Porticcio"]
[Date "2024.07.02"]
[Round "6.7"]
[White "Roebers, Eline"]
[Black "Hamdouchi, Hicham"]
[Result "0-1"]
[ECO "B84"]
[WhiteElo "2326"]
[BlackElo "2527"]
[Annotator "TA"]
[PlyCount "78"]
[EventDate "2024.07.01"]
[EventType "swiss"]
[EventCountry "FRA"]
[SourceTitle "playchess.com"]
[Source "ChessBase"]
[SourceQuality "1"]
[TimeControl "5400+30"]

{[%evp 15,78,31,28,17,28,26,32,15,50,19,68,53,55,-61,-57,-65,-58,-50,-47,-53,-59,-102,-49,-64,0,-6,0,0,0,0,12,-231,-170,-172,-167,-165,-157,-145,-149,-146,-57,-54,-39,-48,-68,-56,-47,-47,-70,-166,-132,-940,-939,-962,-960,-1087,-1087,-1087,-1079,-1222,-1203,-29973,-29971,-29983,-29983]} 1. e4 {[%emt 0:00:02]} c5 {[%emt 0:00:12]} 2. Nf3 {[%emt 0:00:03]} e6 {[%emt 0:00:07]} 3. d4 {[%emt 0:00:03]} cxd4 {[%emt 0:00:09]} 4. Nxd4 {[%emt 0:00:03]} Nc6 {[%emt 0:00:17]} 5. Nc3 {[%emt 0:00:04]} Qc7 {[%emt 0:00:18]} 6. Be2 {[%emt 0:01:15]} a6 {[%emt 0:03:18]} 7. O-O {[%emt 0:00:23]} Nf6 {[%emt 0:01:14]} 8. Be3 {[%emt 0:00:18]} d6 {[%emt 0:01:42]} 9. a3 {[%emt 0:00:56]} Bd7 {[%emt 0:03:39]} 10. f4 {[%emt 0:02:51]} Be7 {[%emt 0:02:49]} 11. Qe1 {[%emt 0:01:41] White is slightly better.} Rc8 {[%emt 0:03:22]} 12. Qg3 {[%emt 0:02:15]} g6 {[%emt 0:02:15]} (12... Nxd4 $11 13. Bxd4 O-O) 13. Kh1 {[%emt 0:12:11]} h5 {[%emt 0:01:22]} 14. f5 {[%emt 0:05:04]} (14. Rad1 $14) 14... gxf5 $15 {[%emt 0:04:36]} 15. exf5 {[%emt 0:02:26]} Nxd4 {[%emt 0:00:29]} 16. Bxd4 {[%emt 0:02:03]} e5 {[%emt 0:00:12]} 17. Be3 {[%emt 0:01:44]} Bc6 {[%emt 0:00:48] ...Rg8 would now be deadly.} 18. Bf3 {[%emt 0:06:28]} Rg8 {[%emt 0:00:32]} (18... d5 $17 {...h4 is the strong threat.} 19. Qh4 d4) 19. Qh4 $1 {[%emt 0:00:35]} Bxf3 {[%emt 0:15:15]} ({Better is} 19... Nd5 $15 20. Nxd5 Bxh4 21. Nxc7+ Rxc7) 20. Rxf3 $11 {[%emt 0:00:34]} Rg4 {[%emt 0:00:07]} 21. Qe1 {[%emt 0:05:59]} d5 $36 {[%emt 0:00:48][%mdl 2048] Black has good play.} 22. h3 {[%emt 0:00:24]} Rg8 {[%emt 0:03:02]} 23. Qh4 {[%emt 0:03:57]} (23. Bg1 $11 {and White has nothing to worry.}) 23... e4 {[%emt 0:14:22]} 24. Rf4 {[%emt 0:03:00]} Qe5 {[%emt 0:04:42] Strongly threatening ...d4.} 25. Qf2 {[%emt 0:07:00]} Bd6 {[%emt 0:37:23][%cal Oh5h4]} 26. Rd1 {[%emt 0:01:00][%cal Od1d5]} Rc4 {[%emt 0:00:00][%cal Od5d4]} 27. g3 {[%emt 0:05:28]} Rxc3 {[%emt 0:00:00]} (27... b5 $17 {And now ...Kd7 would win.} 28. Rd2 (28. Bd4 $2 Rxd4 29. Rxd4 Rxg3 $19) 28... Rxc3 29. bxc3 Qxc3) 28. bxc3 $15 {[%emt 0:05:45]} Qxc3 {[%emt 0:00:00][%cal Oe8e7]} 29. Bd4 {[%emt 0:03:11]} Qxg3 {[%emt 0:00:00]} 30. Qxg3 {[%emt 0:00:43]} Rxg3 {[%emt 0:02:30]} 31. Rh4 {[%emt 0:01:28]} Be7 {[%emt 0:00:00]} 32. a4 {[%emt 0:01:51]} (32. Rf4 $15) 32... Ra3 {[%emt 0:00:00]} 33. c4 $2 {[%emt 0:01:07][%mdl 8192] [#]} (33. c3 $17) 33... Rd3 $1 $19 {[%emt 0:00:00]} ({Worse is} 33... Rxa4 34. cxd5 Kd7 35. d6 Rxd4 36. Rxd4 $15) 34. Rxd3 {[%emt 0:05:27]} exd3 {[%emt 0:00:00] KRB-KBN} 35. Rf4 {[%emt 0:00:15]} d2 {[%emt 0:00:00]} 36. Rf1 {[%emt 0:00:23]} dxc4 {[%emt 0:00:00] aiming for ...Ne4.} 37. Kg2 {[%emt 0:01:34]} Ne4 {[%emt 0:00:00] Threatens to win with ...c3.} 38. Kf3 {[%emt 0:00:06] [#]} c3 $1 {[%emt 0:00:00]} 39. Kxe4 {[%emt 0:00:11]} (39. Bxc3 Nxc3) 39... c2 {[%emt 0:00:00] Weighted Error Value: White=0.73/Black=0.16 (very precise) .  Loses game:     	White=2     	---        Mistake:       	White=2     	Black=4      Inaccurate:     	White=2     	Black=1      OK:         	White=6     	Black=7      Best:        	White=2     	Black=1      Strong:       	White=1     	Black=1} 0-1

[Event "9th Porticcio Open 2024"]
[Site "Porticcio"]
[Date "2024.07.02"]
[Round "6.8"]
[White "Anwesh, Upadhyaya"]
[Black "Priansh Das"]
[Result "1-0"]
[ECO "E69"]
[WhiteElo "2354"]
[BlackElo "2263"]
[Annotator "TA"]
[PlyCount "177"]
[EventDate "2024.07.01"]
[EventType "swiss"]
[EventCountry "FRA"]
[SourceTitle "playchess.com"]
[Source "ChessBase"]
[SourceQuality "1"]
[TimeControl "5400+30"]

{[%evp 18,177,49,33,54,45,70,44,50,52,35,31,39,40,72,67,116,58,55,63,65,48,78,36,34,43,47,56,72,65,60,59,84,88,96,83,201,204,225,209,226,214,214,217,230,208,435,301,335,133,268,259,268,257,447,468,491,457,471,484,536,532,545,544,675,596,787,785,713,653,711,668,756,756,780,717,767,635,800,0,779,749,724,664,659,678,1239,1035,971,971,2118,1543,1549,1037,1001,909,1985,1021,1725,1681,2102,1276,1339,1233,1016,522,720,0,838,0,636,584,1731,1552,5177,2540,5381,1086,887,852,2072,1933,29973,29974,29976,29977,6055,5964,5964,1785,1238,1138,5964,5833,5414,5210,4752,4307,2215,1908,1230,1083,681,375,29977,5518,5734,4316,3968,4125,3523,3523,2800,1993,29978,29980,29980,29979,29996,29997,29997,29998]} 1. d4 {[%emt 0:08:30]} Nf6 {[%emt 0:00:06]} 2. c4 {[%emt 0:00:17]} g6 {[%emt 0:00:06]} 3. g3 {[%emt 0:00:21]} Bg7 {[%emt 0:00:13]} 4. Bg2 {[%emt 0:00:09]} O-O {[%emt 0:00:09]} 5. Nc3 {[%emt 0:00:13]} d6 {[%emt 0:00:09]} 6. Nf3 {[%emt 0:00:10]} Nbd7 {[%emt 0:01:18]} 7. O-O {[%emt 0:00:22]} c6 {[%emt 0:00:35]} 8. e4 {[%emt 0:01:27]} e5 {[%emt 0:00:12]} 9. h3 {[%emt 0:00:17]} Qc7 {[%emt 0:01:09]} 10. Re1 {[%emt 0:01:39]} a5 {[%emt 0:01:15]} 11. Be3 {[%emt 0:10:07]} Re8 {[%emt 0:00:43]} 12. d5 {[%emt 0:05:31]} Nc5 {[%emt 0:02:05] White is slightly better.} 13. Nd2 {[%emt 0:01:10]} Bd7 {[%emt 0:14:40]} 14. Bf1 {[%emt 0:03:47]} Qb8 {[%emt 0:07:14]} 15. a3 {[%emt 0:05:07]} cxd5 {[%emt 1:08:06]} 16. cxd5 {[%emt 0:59:23]} b5 {[%emt 0:00:00]} (16... Rc8 $14 {was preferrable.}) 17. b4 (17. Bxc5 $1 $16 {Be3 is the strong threat.} dxc5 18. a4) 17... axb4 $14 {[%emt 0:01:00]} 18. axb4 {[%emt 0:00:00]} Na4 {[%emt 0:00:00]} 19. Nxa4 {[%emt 0:00:00]} Rxa4 {[%emt 0:00:00]} 20. Qb1 {[%emt 0:00:00]} Rxa1 {[%emt 0:00:00]} 21. Qxa1 {[%emt 0:00:00]} Qb7 {[%emt 0:00:00]} 22. Qb1 {[%emt 0:03:00]} Bf8 {[%emt 0:00:00]} 23. Nb3 {[%emt 0:00:00]} Be7 {[%emt 0:00:00]} 24. Na5 {[%emt 0:00:00]} Qa6 {[%emt 0:00:00] Black is on the road to losing.} 25. Qd3 {[%emt 0:00:00]} Rc8 {[%emt 0:00:00]} 26. Ra1 {[%emt 0:00:00][%cal Be1a1,Ba1a3,Ba3a5][%mdl 32]} Bd8 {[%emt 0:00:00]} (26... Rc7 $16 {might work better.}) 27. Ra3 $1 $18 {[%emt 0:00:00]} Bxa5 {[%emt 0:00:00]} 28. Rxa5 {[%emt 0:00:00]} Qb7 {[%emt 0:00:00]} 29. Ra7 {[%emt 0:00:00]} Qb8 {[%emt 0:00:00] Black is weak on the dark squares} 30. Qa3 {[%emt 0:00:00]} Kg7 {[%emt 0:00:00]} 31. Qa6 {[%emt 0:00:00]} Be8 $2 {[%emt 0:00:00]} (31... h6 32. f4 h5 33. fxe5 dxe5) 32. f3 {[%emt 0:05:00]} Rc3 {[%emt 0:00:00]} 33. Kf2 {[%emt 0:00:00]} (33. Ra8 $18 {has better winning chances.} Qc7 34. Bb6 (34. Bxb5 $2 Bxb5 35. Qxb5 Rxe3 $19)) 33... Qd8 {[%emt 0:08:00]} (33... Rc7 $16 {was necessary.} 34. g4 (34. Qxd6 $2 Rc2+ 35. Be2 Qxd6 $19) 34... h6) 34. Qb6 $1 {[%emt 0:01:00]} (34. Bxb5 Nxe4+ 35. fxe4 Qf6+ 36. Ke2 Rc2+ 37. Kd1 Bxb5 38. Qxb5 Rh2 $11) 34... Qc8 {[%emt 0:00:30]} 35. Qxd6 {[%emt 0:00:00] Active counter play!} Rc2+ $2 {[%emt 0:00:00] [#]} (35... Rxe3 36. Rc7 (36. Kxe3 Qc1+ 37. Ke2 Qc4+ 38. Ke1 Qc3+ 39. Ke2 Qb2+ 40. Ke1 Qb1+ 41. Kf2 Qb2+ 42. Ke1 Qc3+ 43. Ke2 Qc4+ 44. Ke1 Qc1+ 45. Kf2 Qd2+ 46. Kg1 Qe3+ 47. Kh2 Qxa7 $17) 36... Qa8 37. Kxe3 Qa1) 36. Kg1 $1 {[%emt 0:01:00][%cal Oe3g5]} Nd7 {[%emt 0:01:00]} 37. Ra3 {[%emt 0:00:00] Against Qc3} (37. Bxb5 Qc3 38. Kh1 Qxe3) 37... h5 {[%emt 0:00:00]} 38. h4 {[%emt 0:00:00]} (38. Bxb5 Rc1+ 39. Bf1 (39. Bxc1 Qxc1+ 40. Kf2 Qb2+ 41. Ke1 Qxa3 $11) 39... Rb1 $18) 38... Kh7 {[%emt 0:00:00]} 39. Qa6 {[%emt 0:00:00]} (39. Bxb5 Nb6 40. g4 (40. Qxb6 $2 Qh3 $19) 40... Rc1+ 41. Bxc1 (41. Bf1 Nc4 $11) 41... Qxc1+ 42. Bf1 Qxa3 43. gxh5 (43. Qxb6 hxg4 44. Qf2 gxf3 $11) 43... Qe3+ 44. Kg2 Qd2+ (44... gxh5 45. Qxe5 Qd2+ 46. Kh1 $11) 45. Kh1 Qf2 46. hxg6+ fxg6 47. Qe7+ Kh6 $11) 39... Qd8 {[%emt 0:00:00]} 40. Qxb5 {[%emt 0:00:00]} Qf6 {[%emt 0:00:00]} 41. Qd3 {[%emt 0:00:00]} Rb2 {[%emt 0:00:00][%cal Bc2b2,Bb2b1,Bb1a1,Ba1a3][%mdl 32]} 42. Qc3 {[%emt 0:00:00]} Rb1 {[%emt 0:00:00]} 43. Bf2 {[%emt 0:00:48]} Nb6 {[%emt 0:00:00]} 44. Rb3 {[%emt 0:01:04]} Na4 {[%emt 0:00:00]} 45. Qc2 {[%emt 0:00:21]} Ra1 {[%emt 0:00:00]} 46. b5 {[%emt 0:00:59]} Nb6 {[%emt 0:00:00]} 47. Rb1 {[%emt 0:00:50]} Ra3 {[%emt 0:00:00]} 48. Rb3 {[%emt 0:00:07]} Ra1 {[%emt 0:00:00]} 49. Kg2 {[%emt 0:00:10]} Bd7 {[%emt 0:00:00]} 50. Rb1 {[%emt 0:01:12]} Ra3 {[%emt 0:00:00]} 51. Be2 {[%emt 0:00:17]} Na4 {[%emt 0:00:00]} 52. Rb3 {[%emt 0:00:53]} Ra1 {[%emt 0:00:00]} 53. b6 {[%emt 0:00:13]} g5 {[%emt 0:00:00]} 54. hxg5 {[%emt 0:00:48]} Qxg5 {[%emt 0:00:00]} 55. Rb1 {[%emt 0:00:17]} Rxb1 {[%emt 0:00:00]} 56. Qxb1 {[%emt 0:00:05]} Nc3 {[%emt 0:00:00]} 57. Qb2 {[%emt 0:01:10]} Nxe2 {[%emt 0:00:00]} 58. Qxe2 {[%emt 0:00:03][%mdl 4096] Endgame. KQB-KQB} Qc1 {[%emt 0:00:00]} 59. Qe1 {[%emt 0:01:13]} Qb2 {[%emt 0:00:00]} 60. Qh1 {[%emt 0:00:42]} Kg6 {[%emt 0:00:00]} 61. Qh4 {[%emt 0:00:23]} Qb1 {[%emt 0:00:16]} 62. Qh1 {[%emt 0:00:46]} Qb2 {[%emt 0:00:25]} 63. Qe1 $2 {[%emt 0:00:23] Wards off Qe2} ({White should play} 63. g4 $18 hxg4 64. Qh8) 63... f6 $2 {[%emt 0:00:25][%mdl 8192]} (63... Kh7 $11 64. Qh1 Kg6) 64. d6 {[%emt 0:00:35] Strongly threatening Qd1.} Kg7 {[%emt 0:01:48]} 65. Qd1 {[%emt 0:00:25] Repels Qb3. And now Qd5 would win.} Qb5 {[%emt 0:00:16]} 66. Qc2 {[%emt 0:00:33]} (66. Qa1 $142 f5 67. exf5) 66... Kg6 {[%emt 0:00:08]} 67. f4 {[%emt 0:00:30]} (67. Qa2 $142 Kh7 68. Qa7 (68. Qf7+ Kh8 $18) 68... h4 69. gxh4 Kh8 70. b7 Bh3+ 71. Kxh3 Qd7+ 72. Kh2) 67... exf4 {[%emt 0:02:26]} 68. gxf4 {[%emt 0:00:07] Threatens to win with f5+.} f5 {[%emt 0:00:08]} 69. Qc5 {[%emt 0:00:47] Qxb5 would kill now.} Qb1 {[%emt 0:01:04]} 70. Qd5 {[%emt 0:00:40]} Kh6 {[%emt 0:00:28]} 71. b7 {[%emt 0:00:32]} h4 {[%emt 0:00:30]} 72. Qe5 {[%emt 0:00:35]} Qxb7 {[%emt 0:04:03]} 73. Qf6+ {[%emt 0:00:08]} ({Not} 73. Bxh4 Qxe4+ 74. Qxe4 fxe4 $11) 73... Kh7 {[%emt 0:00:05]} 74. Qxh4+ {[%emt 0:00:10]} ({And not} 74. Bxh4 Qxe4+ 75. Kg1 Qb1+ 76. Kh2 Qc2+ 77. Kh3 Qd3+ 78. Bg3 Qf1+ 79. Kh4 Qf3 80. Qe7+ Kg6 81. Qg5+ Kf7 82. Qe7+ Kg6 83. Qg5+ Kf7 84. Qe7+ Kg6 $11) 74... Kg6 {[%emt 0:00:50]} 75. Qg5+ {[%emt 0:00:06]} Kf7 {[%emt 0:00:03]} 76. Qh5+ {[%emt 0:00:52]} Kg8 {[%emt 0:00:06]} 77. Qg6+ {[%emt 0:00:11]} Kf8 {[%emt 0:00:05]} 78. Qf6+ {[%emt 0:00:43]} Kg8 {[%emt 0:00:05] [#]} 79. Qd8+ $1 {[%emt 0:00:17]} Kf7 {[%emt 0:00:17]} 80. Kh2 {[%emt 0:00:10] White wants to mate with Qe7+.} ({Less strong is} 80. Qe7+ Kg6 81. Qg5+ Kf7 82. Qh5+ Kg8 $18) 80... fxe4 $2 {[%emt 0:00:25]} (80... Be6 $18 81. e5 Qd7 82. Qf6+ Ke8 83. Qh8+ Kf7) 81. Bd4 {[%emt 0:00:27]} (81. Qe7+ $142 Kg6 82. Qg5+ Kf7 83. Qh5+ Ke6 84. Qe5+ Kf7 85. Bd4 Bc6 86. f5) 81... Ke6 {[%emt 0:00:06]} 82. Qe7+ {[%emt 0:00:34]} Kd5 {[%emt 0:00:18]} 83. Qe5+ {[%emt 0:00:12]} Kc4 {[%emt 0:00:04]} 84. Qc5+ {[%emt 0:00:10]} Kb3 {[%emt 0:01:22]} 85. f5 {[%emt 0:00:26] Qc3+ would now be deadly.} Bb5 {[%emt 0:01:25]} 86. Qc3+ {[%emt 0:01:02] White mates.} Ka4 {[%emt 0:00:04]} 87. Qc2+ {[%emt 0:01:03]} Kb4 {[%emt 0:00:33]} 88. Bc5+ {[%emt 0:00:21]} Ka5 {[%emt 0:00:04]} 89. Qc3+ {[%emt 0:00:14] Weighted Error Value: White=0.22 (precise) /Black=0.51.  Loses game:     	---       	Black=1      Missed win:     	White=1     	---        Mistake:       	White=1     	Black=5      Inaccurate:     	White=3     	Black=5      OK:         	White=13    	Black=11     Best:        	White=1     	Black=3      Strong:       	White=3     	---} 1-0

[Event "9th Porticcio Open 2024"]
[Site "Porticcio"]
[Date "2024.07.03"]
[Round "7.1"]
[White "Fedorchuk, Sergey A."]
[Black "Batsiashvili, Nino"]
[Result "1/2-1/2"]
[ECO "C50"]
[WhiteElo "2546"]
[BlackElo "2450"]
[Annotator "TA"]
[PlyCount "55"]
[EventDate "2024.07.01"]
[EventType "swiss"]
[EventCountry "FRA"]
[SourceTitle "playchess.com"]
[Source "ChessBase"]
[SourceQuality "1"]
[TimeControl "5400+30"]

{[%evp 9,55,9,25,0,0,0,0,0,0,0,0,0,7,0,0,0,0,0,0,0,0,-58,-56,-53,-56,-48,-50,-43,-55,-52,-52,-52,-52,-63,-54,-54,-50,-72,-52,-53,0,-65,0,-45,0,-61,0,-43]} 1. e4 {[%emt 0:00:05]} e5 {[%emt 0:00:03]} 2. Nf3 {[%emt 0:00:22]} Nc6 {[%emt 0:00:09]} 3. Bc4 {[%emt 0:01:04]} Nf6 {[%emt 0:00:29]} 4. d3 {[%emt 0:00:13]} Bc5 {[%emt 0:01:06]} 5. O-O {[%emt 0:01:17]} a5 {[%emt 0:03:13]} 6. Be3 {[%emt 0:08:49]} Bxe3 {[%emt 0:03:29]} 7. fxe3 {[%emt 0:00:24]} O-O {[%emt 0:02:24]} 8. Nc3 {[%emt 0:09:19]} d6 {[%emt 0:00:27]} 9. Ng5 {[%emt 0:24:32] Strongly threatening Nd5.} Qe7 {[%emt 0:11:02]} 10. Qe1 {[%emt 0:22:49] [#] Hoping for Qh4.} Nd8 {[%emt 0:07:42]} 11. Qg3 {[%emt 0:09:26][%cal Of1f6]} (11. Qh4 $5 h6 $8 12. Nf3 $11) 11... c6 {[%emt 0:02:26] And now ...b5 would win.} 12. a4 {[%emt 0:00:08]} Ng4 {[%emt 0:10:07]} 13. Nh3 {[%emt 0:03:29]} h5 {[%emt 0:00:21]} 14. Kh1 {[%emt 0:04:32]} Be6 {[%emt 0:08:26]} 15. Rf3 {[%emt 0:02:13]} (15. Bxe6 $11 Nxe6 16. Rad1) 15... Bxc4 $15 {[%emt 0:00:17]} 16. dxc4 {[%emt 0:00:05]} Ne6 {[%emt 0:00:11]} 17. Raf1 {[%emt 0:00:40]} Rae8 {[%emt 0:09:00]} 18. Nf2 {[%emt 0:02:38]} Nh6 {[%emt 0:00:33]} 19. Nh3 {[%emt 0:02:04]} g6 {[%emt 0:04:51] Dodges Rf5} 20. b3 {[%emt 0:00:18]} Kg7 {[%emt 0:01:06]} 21. Ne2 {[%emt 0:01:12]} Ng4 {[%emt 0:04:04]} 22. Nc3 {[%emt 0:00:54]} b6 {[%emt 0:00:36]} 23. Qe1 {[%emt 0:01:55]} Nc5 {[%emt 0:02:05]} 24. Qg3 {[%emt 0:00:30]} Ne6 {[%emt 0:04:43]} 25. Qe1 {[%emt 0:00:15]} Nc5 {[%emt 0:01:16]} 26. Qg3 $1 {[%emt 0:00:06]} Ne6 {[%emt 0:00:12]} 27. Qe1 {[%emt 0:00:07]} Nc5 {[%emt 0:00:16]} 28. Qg3 $1 {[%emt 0:05:04] Weighted Error Value: White=0.07 (flawless) /Black=0.15 (very precise) .  Mistake:       	White=1     	---        OK:         	White=9     	Black=11     Best:        	White=2     	---        Strong:       	White=2     	---} 1/2-1/2